Workbook

Sheet AVVERTENZE

Sheet DOGMA 1 Anta
B2: DOGMA Finestra 1 Anta
B4: Dati geometrici
B5: L | C5: 1.535 | D5: m | E5: Larghezza finestra
B6: H | C6: 1.48 | D6: m | E6: Altezza finestra
B7: Lg | C7: =C5-(C9*2) -> 1.352 | D7: m | E7: Larghezza vetrata
B8: Hg | C8: =C6-(C9*2) -> 1.297 | D8: m | E8: Altezza vetrata
B9: S1 | C9: 0.0915 | D9: m | E9: Larg mont/traversa Tel + Anta
B11: Trasmittanze
B12: Ug | C12: 1 | D12: W/(m2·K) | E12: Trasmittanza termica del vetro
B13: Uf | C13: 1.5 | D13: W/(m2·K) | E13: Trasmittanza termica del telaio più anta
B14: Ψ (Psi) | C14: 0.036 | D14: W/(m2·K) | E14: Trasm. Term. Lin. del vetro
B16: Valori calcolati
B17: Ag | C17: =C7*C8 -> 1.753544 | D17: m2 | E17: Area della vetrata
B18: Af | C18: =(C5+C6)*2*C9 -> 0.551745 | D18: m2 | E18: Area del telaio
B19: Lg | C19: =2*(C7+C8) -> 5.298 | D19: m | E19: Perimetro vetrata
B20: Uw | C20: =(C17*C12+C18*C13+C19*C14)/(C17+C18) -> 1.202404341 | D20: W/(m2·K) | E20: Trasmittanza del serramento
B23: Equazione utilizzata:
B24: UW = ( Ag Ug + Af Uf + Ig Yg ) / ( Ag + Af)
B27: Leggere attentamente le note nel foglio denominato AVVERTENZE

Sheet DOGMA 2 Ante
B2: DOGMA Finestra a 2 ante TZ
B4: Dati geometrici
B5: L | C5: 1.535 | D5: m | E5: Larghezza finestra
B6: H | C6: 1.48 | D6: m | E6: Altezza finestra
B7: Lg | C7: =(C5/2)-C9-(C10/2) -> 0.61635 | D7: m | E7: Larghezza vetrata
B8: Hg | C8: =C6-(C9*2) -> 1.297 | D8: m | E8: Altezza vetrata
B9: S1 | C9: 0.0915 | D9: m | E9: Larg mont/traversa Tel + Anta
B10: S2 | C10: 0.1193 | D10: m | E10: Larghezza montante centrale
B12: Trasmittanze
B13: Ug | C13: 1 | D13: W/(m2·K) | E13: Trasmittanza termica del vetro
B14: Uf | C14: 1.5 | D14: W/(m2·K) | E14: Trasmittanza termica del telaio nelle sezioni esterne S1
B15: Ψ (Psi) | C15: 0.036 | D15: W/(m2·K) | E15: Trasmittanza lineare
B17: Valori calcolati
B18: Ag | C18: =2*(C7*C8) -> 1.5988119 | D18: m2 | E18: Area complessiva delle superfici vetrate
B19: AfS1 | C19: =(C5+C6)*2*C9 -> 0.551745 | D19: m2 | E19: Area profili Telaio + Anta
B20: AfS2 | C20: =C8*C10 -> 0.1547321 | D20: m2 | E20: Area profili S2
B21: lg | C21: =4*(C7+C8) -> 7.6534 | D21: m | E21: Perimetro complessivo della superficie vetrata
B22: Uw | C22: =(C13*C18+C14*C19+C14*C20+C15*C21)/(C18+C19+C20) -> 1.272747126 | D22: W/(m2·K) | E22: Trasmittanza del serramento
B24: Equazione utilizzata:
B25: UW = ( Ag Ug + AfS1 UfS1 + AfS2 UfS2 + Ig Yg ) / ( Ag + AfS1 + AfS2)
B28: Leggere attentamente le note nel foglio denominato AVVERTENZE
Y35: .

Sheet DOGMA 2 Ante Rip
B2: DOGMA Finestra 2 Ante Riporto
B4: Dati geometrici
B5: L | C5: 1.535 | D5: m | E5: Larghezza finestra
B6: H | C6: 1.48 | D6: m | E6: Altezza finestra
B7: Lg | C7: =(C5/2)-C9-(C10/2) -> 0.6045 | D7: m | E7: Larghezza vetrata
B8: Hg | C8: =C6-(C9*2) -> 1.297 | D8: m | E8: Altezza vetrata
B9: S1 | C9: 0.0915 | D9: m | E9: Larg mont/traversa Tel + Anta
B10: S2 | C10: 0.143 | D10: m | E10: Larghezza montante centrale
B12: Trasmittanze
B13: Ug | C13: 1 | D13: W/(m2·K) | E13: Trasmittanza termica del vetro
B14: Uf | C14: 1.5 | D14: W/(m2·K) | E14: Trasmittanza termica del telaio nelle sezioni esterne S1
B15: Ψ (Psi) | C15: 0.036 | D15: W/(m2·K) | E15: Trasmittanza lineare
B17: Valori calcolati
B18: Ag | C18: =2*(C7*C8) -> 1.568073 | D18: m2 | E18: Area complessiva delle superfici vetrate
B19: AfS1 | C19: =(C5+C6)*2*C9 -> 0.551745 | D19: m2 | E19: Area profili Telaio + Anta
B20: AfS2 | C20: =C8*C10 -> 0.185471 | D20: m2 | E20: Area profili S2
B21: lg | C21: =4*(C7+C8) -> 7.606 | D21: m | E21: Perimetro complessivo della superficie vetrata
B22: Uw | C22: =(C13*C18+C14*C19+C14*C20+C15*C21)/(C18+C19+C20) -> 1.278673954 | D22: W/(m2·K) | E22: Trasmittanza del serramento
B26: Equazione utilizzata:
B27: UW = ( Ag Ug + Af Uf + Ig Yg ) / ( Ag + Af)
C30: Leggere attentamente le note nel foglio denominato AVVERTENZE
Y37: ,

Sheet Slim 1 Anta
B2: DOGMA Slim Finestra ad una anta
B4: Dati geometrici
B5: L | C5: 1.23 | D5: m | E5: Larghezza finestra
B6: H | C6: 1.48 | D6: m | E6: Altezza finestra
B7: Lg | C7: =C5-(C9*2) -> 1.09 | D7: m | E7: Larghezza vetrata
B8: Hg | C8: =C6-(C9*2) -> 1.34 | D8: m | E8: Altezza vetrata
B9: Ls | C9: 0.07 | D9: m | E9: Larg mont/traversa Tel + Anta
B11: Trasmittanze
B12: Ug | C12: 1 | D12: W/(m2·K) | E12: Trasmittanza termica del vetro
B13: Uf | C13: 1.7 | D13: W/(m2·K) | E13: Trasmittanza termica del telaio più anta
B14: Ψ (Psi) | C14: 0.036 | D14: W/(m2·K) | E14: Trasm. Term. Lin. del vetro
B16: Valori calcolati
B17: Ag | C17: =C7*C8 -> 1.4606 | D17: m2 | E17: Area della vetrata
B18: Af | C18: =(C5+C6)*2*C9 -> 0.3794 | D18: m2 | E18: Area del telaio
B19: lg | C19: =2*(C7+C8) -> 4.86 | D19: m | E19: Perimetro vetrata
B20: Uw | C20: =(C17*C12+C18*C13+C19*C14)/(C17+C18) -> 1.239423913 | D20: W/(m2·K) | E20: Trasmittanza del serramento
B23: Equazione utilizzata:
B24: UW = ( Ag Ug + Af Uf + Ig Yg ) / ( Ag + Af)
B27: Leggere attentamente le note nel foglio denominato AVVERTENZE

Sheet Slim 2 Ante
B2: DOGMA Slim Finestra a 2 ante
B4: Dati geometrici
B5: L | C5: 1.535 | D5: m | E5: Larghezza finestra
B6: H | C6: 1.48 | D6: m | E6: Altezza finestra
B7: Lg | C7: =(C5/2)-C9-(C10/2) -> 0.652 | D7: m | E7: Larghezza vetrata
B8: Hg | C8: =C6-(C9*2)+0.02 -> 1.36 | D8: m | E8: Altezza vetrata
B9: S1 | C9: 0.07 | D9: m | E9: Larg mont/traversa Tel + Anta
B10: S2 | C10: 0.091 | D10: m | E10: Larghezza montante centrale
B12: Trasmittanze
B13: Ug | C13: 1 | D13: W/(m2·K) | E13: Trasmittanza termica del vetro
B14: Uf | C14: 1.7 | D14: W/(m2·K) | E14: Trasmittanza termica del telaio nelle sezioni esterne S1
B15: Uf | C15: 1.8 | D15: W/(m2·K) | E15: Trasmittanza termica del telaio nella Sez S2
B16: Ψ (Psi) | C16: 0.036 | D16: W/(m2·K) | E16: Trasmittanza lineare
B18: Valori calcolati
B19: Ag | C19: =2*(C7*C8) -> 1.77344 | D19: m2 | E19: Area complessiva delle superfici vetrate
B20: AfS1 | C20: =(C5+C6)*2*C9 -> 0.4221 | D20: m2 | E20: Area profili Telaio + Anta
B21: AfS2 | C21: =C8*C10 -> 0.12376 | D21: m2 | E21: Area profili S2
B22: lg | C22: =4*(C7+C8) -> 8.048 | D22: m | E22: Perimetro complessivo della superficie vetrata
B23: Uw | C23: =(C19*C13+C14*C20+C15*C21+C16*C22)/(C19+C20+C21) -> 1.29500539 | D23: W/(m2·K) | E23: Trasmittanza del serramento
B27: Equazione utilizzata:
B28: UW = ( Ag Ug + AfS1 UfS1 + AfS2 UfS2 + Ig Yg ) / ( Ag + AfS1 + AfS2)
B31: Leggere attentamente le note nel foglio denominato AVVERTENZE
Y38: .

Sheet Light 2.3-1 Anta
B2: DOGMA Light Base Finestra ad una anta
B4: Dati geometrici
B5: L | C5: 1.535 | D5: m | E5: Larghezza finestra
B6: H | C6: 1.48 | D6: m | E6: Altezza finestra
B7: Lg | C7: =C5-(C9*2) -> 1.352 | D7: m | E7: Larghezza vetrata
B8: Hg | C8: =C6-(C9*2) -> 1.297 | D8: m | E8: Altezza vetrata
B9: S1 | C9: 0.0915 | D9: m | E9: Larg mont/traversa Tel + Anta
B11: Trasmittanze
B12: Ug | C12: 1 | D12: W/(m2·K) | E12: Trasmittanza termica del vetro
B13: Uf | C13: 2.3 | D13: W/(m2·K) | E13: Trasmittanza termica del telaio più anta
B14: Ψ (Psi) | C14: 0.036 | D14: W/(m2·K) | E14: Trasm. Term. Lin. del vetro
B16: Valori calcolati
B17: Ag | C17: =C7*C8 -> 1.753544 | D17: m2 | E17: Area della vetrata
B18: Af | C18: =(C5+C6)*2*C9 -> 0.551745 | D18: m2 | E18: Area del telaio
B19: Lg | C19: =2*(C7+C8) -> 5.298 | D19: m | E19: Perimetro vetrata
B20: Uw | C20: =(C17*C12+C18*C13+C19*C14)/(C17+C18) -> 1.393875345 | D20: W/(m2·K) | E20: Trasmittanza del serramento
B22: Equazione utilizzata:
B23: UW = ( Ag Ug + Af Uf + Ig Yg ) / ( Ag + Af)
B26: Leggere attentamente le note nel foglio denominato AVVERTENZE

Sheet Light 2.3_2Ante e 2A_Rip
B2: DOGMA Light Base Finestra a 2 ante
B4: Dati geometrici
B5: L | C5: 1.535 | D5: m | E5: Larghezza finestra
B6: H | C6: 1.48 | D6: m | E6: Altezza finestra
B7: Lg | C7: =(C5/2)-C9-(C10/2) -> 0.6045 | D7: m | E7: Larghezza vetrata
B8: Hg | C8: =C6-(C9*2) -> 1.297 | D8: m | E8: Altezza vetrata
B9: S1 | C9: 0.0915 | D9: m | E9: Larg mont/traversa Tel + Anta
B10: S2 | C10: 0.143 | D10: m | E10: Larghezza montante centrale
B12: Trasmittanze
B13: Ug | C13: 1 | D13: W/(m2·K) | E13: Trasmittanza termica del vetro
B14: Uf | C14: 2.3 | D14: W/(m2·K) | E14: Trasmittanza termica del telaio nelle sezioni esterne S1
B15: Uf | C15: 2.4 | D15: W/(m2·K) | E15: Trasmittanza termica del telaio nella Sez S2
B16: Ψ (Psi) | C16: 0.036 | D16: W/(m2·K) | E16: Trasmittanza lineare
B18: Valori calcolati
B19: Ag | C19: =2*(C7*C8) -> 1.568073 | D19: m2 | E19: Area complessiva delle superfici vetrate
B20: AfS1 | C20: =(C5+C6)*2*C9 -> 0.551745 | D20: m2 | E20: Area profili Telaio + Anta
B21: AfS2 | C21: =C8*(C10-0.03) -> 0.146561 | D21: m2 | E21: Area profili S2
B22: lg | C22: =4*(C7+C8) -> 7.606 | D22: m | E22: Perimetro complessivo della superficie vetrata
B23: Uw | C23: =(C19*C13+C14*C20+C15*C21+C16*C22)/(C19+C20+C21) -> 1.527833121 | D23: W/(m2·K) | E23: Trasmittanza del serramento
B27: Equazione utilizzata:
B28: UW = ( Ag Ug + AfS1 UfS1 + AfS2 UfS2 + Ig Yg ) / ( Ag + AfS1 + AfS2)
B31: Leggere attentamente le note nel foglio denominato AVVERTENZE
Y38: .

Sheet Light Hi 2.0_1Anta
B2: DOGMA Light Hi Finestra ad una anta
B4: Dati geometrici
B5: L | C5: 1.535 | D5: m | E5: Larghezza finestra
B6: H | C6: 1.48 | D6: m | E6: Altezza finestra
B7: Lg | C7: =C5-(C9*2) -> 1.352 | D7: m | E7: Larghezza vetrata
B8: Hg | C8: =C6-(C9*2) -> 1.297 | D8: m | E8: Altezza vetrata
B9: S1 | C9: 0.0915 | D9: m | E9: Larg mont/traversa Tel + Anta
B11: Trasmittanze
B12: Ug | C12: 1 | D12: W/(m2·K) | E12: Trasmittanza termica del vetro
B13: Uf | C13: 2 | D13: W/(m2·K) | E13: Trasmittanza termica del telaio più anta
B14: Ψ (Psi) | C14: 0.036 | D14: W/(m2·K) | E14: Trasm. Term. Lin. del vetro
B16: Valori calcolati
B17: Ag | C17: =C7*C8 -> 1.753544 | D17: m2 | E17: Area della vetrata
B18: Af | C18: =(C5+C6)*2*C9 -> 0.551745 | D18: m2 | E18: Area del telaio
B19: Lg | C19: =2*(C7+C8) -> 5.298 | D19: m | E19: Perimetro vetrata
B20: Uw | C20: =(C17*C12+C18*C13+C19*C14)/(C17+C18) -> 1.322073718 | D20: W/(m2·K) | E20: Trasmittanza del serramento
B22: Equazione utilizzata:
B23: UW = ( Ag Ug + Af Uf + Ig Yg ) / ( Ag + Af)
B26: Leggere attentamente le note nel foglio denominato AVVERTENZE

Sheet Light Hi_2.0_2Ante e 2A_Rip
B2: DOGMA Light Hi Finestra a 2 ante
B4: Dati geometrici
B5: L | C5: 1.535 | D5: m | E5: Larghezza finestra
B6: H | C6: 1.48 | D6: m | E6: Altezza finestra
B7: Lg | C7: =(C5/2)-C9-(C10/2) -> 0.6045 | D7: m | E7: Larghezza vetrata
B8: Hg | C8: =C6-(C9*2) -> 1.297 | D8: m | E8: Altezza vetrata
B9: S1 | C9: 0.0915 | D9: m | E9: Larg mont/traversa Tel + Anta
B10: S2 | C10: 0.143 | D10: m | E10: Larghezza montante centrale
B12: Trasmittanze
B13: Ug | C13: 1 | D13: W/(m2·K) | E13: Trasmittanza termica del vetro
B14: Uf1 | C14: 2 | D14: W/(m2·K) | E14: Trasmittanza termica del telaio nelle sezioni esterne S1
B15: Uf2 | C15: 2 | D15: W/(m2·K) | E15: Trasmittanza termica del telaio nella Sez S2
B16: Ψ (Psi) | C16: 0.036 | D16: W/(m2·K) | E16: Trasmittanza lineare
B18: Valori calcolati
B19: Ag | C19: =2*(C7*C8) -> 1.568073 | D19: m2 | E19: Area complessiva delle superfici vetrate
B20: AfS1 | C20: =(C5+C6)*2*C9 -> 0.551745 | D20: m2 | E20: Area profili Telaio + Anta
B21: AfS2 | C21: =C8*(C10-0.1) -> 0.055771 | D21: m2 | E21: Area profili S2
B22: lg | C22: =4*(C7+C8) -> 7.606 | D22: m | E22: Perimetro complessivo della superficie vetrata
B23: Uw | C23: =(C19*C13+C14*C20+C15*C21+C16*C22)/(C19+C20+C21) -> 1.405100412 | D23: W/(m2·K) | E23: Trasmittanza del serramento
B25: Equazione utilizzata:
B26: UW = ( Ag Ug + AfS1 UfS1 + AfS2 UfS2 + Ig Yg ) / ( Ag + AfS1 + AfS2)
B29: Leggere attentamente le note nel foglio denominato AVVERTENZE
Y36: .

Sheet DOGMA Pro 1A
B2: DOGMA Pro Finestra ad una anta
B4: Dati geometrici
B5: L | C5: 1.535 | D5: m | E5: Larghezza finestra
B6: H | C6: 1.48 | D6: m | E6: Altezza finestra
B7: Lg | C7: =C5-(C9*2) -> 1.352 | D7: m | E7: Larghezza vetrata
B8: Hg | C8: =C6-(C9*2) -> 1.297 | D8: m | E8: Altezza vetrata
B9: S1 | C9: 0.0915 | D9: m | E9: Larg mont/traversa Tel + Anta
B11: Trasmittanze
B12: Ug | C12: 1 | D12: W/(m2·K) | E12: Trasmittanza termica del vetro
B13: Uf | C13: 1.2 | D13: W/(m2·K) | E13: Trasmittanza termica del telaio più anta
B14: Ψ (Psi) | C14: 0.036 | D14: W/(m2·K) | E14: Trasm. Term. Lin. del vetro
B16: Valori calcolati
B17: Ag | C17: =C7*C8 -> 1.753544 | D17: m2 | E17: Area della vetrata
B18: Af | C18: =(C5+C6)*2*C9 -> 0.551745 | D18: m2 | E18: Area del telaio
B19: Lg | C19: =2*(C7+C8) -> 5.298 | D19: m | E19: Perimetro vetrata
B20: Uw | C20: =(C17*C12+C18*C13+C19*C14)/(C17+C18) -> 1.130602714 | D20: W/(m2·K) | E20: Trasmittanza del serramento
B22: Equazione utilizzata:
B23: UW = ( Ag Ug + Af Uf + Ig Yg ) / ( Ag + Af)
B26: Leggere attentamente le note nel foglio denominato AVVERTENZE

Sheet DOGMA Pro 2A
B2: DOGMA Pro Finestra a 2 ante
B4: Dati geometrici
B5: L | C5: 1.535 | D5: m | E5: Larghezza finestra
B6: H | C6: 1.48 | D6: m | E6: Altezza finestra
B7: Lg | C7: =(C5/2)-C9-(C10/2) -> 0.6045 | D7: m | E7: Larghezza vetrata
B8: Hg | C8: =C6-(C9*2) -> 1.297 | D8: m | E8: Altezza vetrata
B9: S1 | C9: 0.0915 | D9: m | E9: Larg mont/traversa Tel + Anta
B10: S2 | C10: 0.143 | D10: m | E10: Larghezza montante centrale
B12: Trasmittanze
B13: Ug | C13: 1 | D13: W/(m2·K) | E13: Trasmittanza termica del vetro
B14: Uf1 | C14: 1.2 | D14: W/(m2·K) | E14: Trasmittanza termica del telaio nelle sezioni esterne S1
B15: Uf2 | C15: 1.2 | D15: W/(m2·K) | E15: Trasmittanza termica del telaio nella Sez S2
B16: Ψ (Psi) | C16: 0.036 | D16: W/(m2·K) | E16: Trasmittanza lineare
B18: Valori calcolati
B19: Ag | C19: =2*(C7*C8) -> 1.568073 | D19: m2 | E19: Area complessiva delle superfici vetrate
B20: AfS1 | C20: =(C5+C6)*2*C9 -> 0.551745 | D20: m2 | E20: Area profili Telaio + Anta
B21: AfS2 | C21: =C8*(C10-0.09) -> 0.068741 | D21: m2 | E21: Area profili S2
B22: lg | C22: =4*(C7+C8) -> 7.606 | D22: m | E22: Perimetro complessivo della superficie vetrata
B23: Uw | C23: =(C19*C13+C14*C20+C15*C21+C16*C22)/(C19+C20+C21) -> 1.181815158 | D23: W/(m2·K) | E23: Trasmittanza del serramento
B25: Equazione utilizzata:
B26: UW = ( Ag Ug + AfS1 UfS1 + AfS2 UfS2 + Ig Yg ) / ( Ag + AfS1 + AfS2)
B29: Leggere attentamente le note nel foglio denominato AVVERTENZE
Y36: .

Sheet Foglio4 (hidden)
